Cogmind - Beta 13 @@@ ROGUE MODE // 2024.04.02 @ 14:54:09 Player: Aklangi Result: Destroyed self with Light Ion Engine chain reaction Performance ------------- Evolutions (0) 0 Regions Visited (2) 400 Robots Destroyed (22) 110 Value Destroyed (577) 577 Prototype IDs (3) 60 Alien Tech Used (0) 0 Bonus (0) 0 TOTAL SCORE: 1147 Bonus ------- None Cogmind --------- Core Integrity 0/250 Matter 300/300 Energy 234/250 System Corruption 2% Temperature Cool (72) Movement Core (450) Ox8 Location -10/Mines Parts ------- > --- POWER (1) -------- Ion Engine > --- PROPULSION (2) --- Aluminum Leg > --- UTILITY (2) ------ Large Storage Unit Signal Interpreter > --- WEAPON (2) ------- EM Pulse Gun > --- INVENTORY (15) --- Light Ion Engine Hover Unit Small Storage Unit Medium Storage Unit Recalibrator Small Laser Datajack Mining Laser Hammer Peak State ------------ > --- POWER ------------ Ion Engine > --- PROPULSION ------- Light Treads Aluminum Leg > --- UTILITY ---------- Large Storage Unit Signal Interpreter > --- WEAPON ----------- EM Pulse Gun Small Laser > --- INVENTORY -------- Light Ion Engine Hover Unit Small Storage Unit Medium Storage Unit Recalibrator Datajack Mining Laser Hammer [Rating: 8] Favorites ----------- Power Ion Engine Engine Ion Engine Propulsion Light Treads Treads Light Treads Leg Aluminum Leg Utility Large Storage Unit Storage Large Storage Unit Processor Signal Interpreter Weapon Small Laser Energy Gun Small Laser Ballistic Gun Light Assault Rifle Build | -11 -10 -10 ------- Run | Yrd Mat Min Slots Evolved . | . . . Power . | . . . Propulsion . | . . . Utility . | . . . Weapon . | . . . Parts Attached 20 | 6 10 4 Power 4 | 1 3 . Engine 4 | 1 3 . Core . | . . . Reactor . | . . . Propulsion 4 | 2 1 1 Treads 3 | 2 1 . Leg 1 | . . 1 Wheel . | . . . Hover . | . . . Flight . | . . . Utility 3 | 1 2 . Device . | . . . Storage 2 | 1 1 . Processor 1 | . 1 . Hackware . | . . . Protection . | . . . Artifact . | . . . Weapon 9 | 2 4 3 Energy Gun 6 | 2 1 3 Energy Cannon . | . . . Ballistic Gun 3 | . 3 . Ballistic Cannon . | . . . Launcher . | . . . Special Weapon . | . . . Impact Weapon . | . . . Slashing Weapon . | . . . Piercing Weapon . | . . . Special Melee Weapon . | . . . Unidentified Prototypes . | . . . Parts Lost 6 | . 3 3 Power 1 | . 1 . Propulsion 2 | . 1 1 Utility . | . . . Weapon 3 | . 1 2 Highest Loss Streak 2 | . 2 2 To Critical Strikes . | . . . Average Slot Usage (%) 86 | . 82 92 Engine 13 | . 13 14 Treads 18 | . 21 13 Leg 3 | . . 7 Storage 14 | . 14 14 Processor 8 | . 4 14 Energy Gun 14 | . 9 21 Ballistic Gun 13 | . 18 6 Naked Turns . | . . . Heaviest Build 29 | 13 28 29 Greatest Support 40 | 40 40 20 Greatest Overweight (x) 1 | . 1 1 Average Overweight (x) . | . . 1 Largest Inventory Capacity 15 | 8 15 15 Average Capacity 14 | 7 14 15 Most Carried 9 | . 9 9 Average Carried 6 | . 5 8 Final Capacity 15 | 8 15 15 Final Carried 9 | . 9 9 Class Distribution -------------------- 100% | Mutant Dominant Class ---------------- Mutant | -10/Materials Mutant | -10/Mines Resources | -11 -10 -10 ----------- Run | Yrd Mat Min Matter Collected 546 | 118 361 67 Remotely . | . . . Salvage Created 800 | . 576 224 Parts 41 | . 33 8 Haulers Intercepted 1 | . 1 . Recyclers Shooed 2 | . 1 1 Parts Field Recycled . | . . . Retrieved Matter . | . . . Parts Self-Destructed . | . . . Prevented . | . . . Kills | -11 -10 -10 ------- Run | Yrd Mat Min Combat Hostiles Destroyed 18 | . 14 4 Guns 17 | . 14 3 AOE 1 | . . 1 Classes Destroyed 6 | . 5 1 Worker 1 | . 1 . Hauler 1 | . 1 . Recycler 1 | . . 1 Mechanic 1 | . 1 . Swarmer 4 | . 2 2 Grunt 14 | . 12 2 Best Kill Streak 4 | . 4 3 Combat Bots Only 4 | . 4 2 Max Kills in Single Turn 1 | . 1 1 Gunslinging . | . . . Exploded 1 | . . 1 Melee . | . . . Uniques/NPCs Destroyed . | . . . Combat | -11 -10 -10 -------- Run | Yrd Mat Min Hostile Shots Fired 148 | . 96 52 Missed 38 | . 26 12 Damage Taken 1207 | . 778 429 Core 258 | . 129 129 Absorbed by Shields . | . . . Regen/Repaired (Parts) 138 | . 138 . Core Remaining (%) 100 | 100 . . Volleys Fired 89 | . 66 23 Largest 2 | . 2 2 Hottest 80 | . 60 80 Shots Fired 163 | . 121 42 Gun 163 | . 121 42 Cannon . | . . . Launcher . | . . . Special . | . . . Kinetic 102 | . 91 11 Thermal 44 | . 30 14 Explosive . | . . . Electromagnetic 17 | . . 17 Robot Hit Streak 15 | . 15 5 Robot Miss Streak 5 | . 3 5 Penetration Max . | . . . Secondary Targets 2 | . 2 . Max Gunslinging Chain 1 | . 1 . Shots Hit Robots 94 | . 74 20 Core Hits 45 | . 37 8 Critical Kills . | . . . Critical Parts Destroyed . | . . . Critical Strikes . | . . . Melee Attacks . | . . . Impact . | . . . Slashing . | . . . Piercing . | . . . Sneak Attacks . | . . . Combat Hostiles . | . . . Follow-up Attacks . | . . . Damage Inflicted 1075 | . 781 294 Guns 1004 | . 747 257 Cannons . | . . . Explosions 37 | . . 37 Melee . | . . . Ramming 34 | . 34 . Kinetic 615 | . 573 42 Thermal 319 | . 174 145 Explosive . | . . . Electromagnetic 107 | . . 107 Impact . | . . . Slashing . | . . . Piercing . | . . . Highest Corruption 2 | . 2 2 Average Corruption 2 | . 2 2 Corruption Purged . | . . . Corruption Blocked . | . . . Effects 11 | . 1 10 Message Errors 4 | . . 4 Matter Fused 2 | . 1 1 Energy Discharges 2 | . . 2 Data Loss (minor) 2 | . . 2 Alerts 1 | . . 1 Overload Shots . | . . . Overflow Damage . | . . . Projectiles . | . . . Explosions . | . . . Melee . | . . . Knockbacks . | . . . Impact . | . . . Kinetic . | . . . Secondary . | . . . Self-Inflicted Damage 34 | . . 34 Shots 1 | . . 1 Rammed 14 | 1 13 . Targets Rammed 15 | 1 14 . Kicked . | . . . Crushed 1 | . 1 . Highest Temperature 159 | . 102 159 Average Temperature 45 | . 25 71 Received Heat Transfer 459 | . 315 144 Siege Activations . | . . . Robots Corrupted . | . . . Combat Hostiles . | . . . Parts Fried . | . . . Impact Corruptions . | . . . Robots Melted . | . . . Combat Hostiles . | . . . Parts Melted 3 | . 1 2 Heat Transferred 700 | . 400 300 Parts Sabotaged . | . . . Parts Stolen . | . . . Parts Stripped . | . . . Power Chain Reactions 1 | . . 1 Alert | -11 -10 -10 ------- Run | Yrd Mat Min Peak Influence 243 | . 243 30 Initial . | . . . Average 64 | . 106 13 Maximum Alert Level 1 | . 1 . Low Security (%) 89 | 100 80 100 Level 1 10 | . 19 . Level 2 . | . . . Level 3 . | . . . Level 4 . | . . . Level 5 . | . . . High Security . | . . . Max Security . | . . . Squads Dispatched 4 | . 4 . Investigation 1 | . 1 . Extermination . | . . . Reinforcement 3 | . 3 . Assault . | . . . Garrison . | . . . Intercept . | . . . Searches Triggered . | . . . Construction Impeded . | . . . Haulers Reinforced . | . . . Active Scanning Responses . | . . . Cargo Convoy Interrupts . | . . . Stealth | -11 -10 -10 --------- Run | Yrd Mat Min Distress Signals . | . . . Communications Jammed . | . . . Distress Signals . | . . . Times Spotted 39 | . 34 5 Peak Tracking Total 5 | . 5 3 Tactical Retreats 2 | . 2 . Traps | -11 -10 -10 ------- Run | Yrd Mat Min Traps Triggered 2 | . 2 . Indirectly . | . . . Trap Hack Attempts . | . . . Triggered . | . . . Disarmed . | . . . Reprogrammed 3 | . 3 . Reused . | . . . Traps Extracted . | . . . Installed . | . . . Triggered . | . . . Machines | -11 -10 -10 ---------- Run | Yrd Mat Min Machines Disabled . | . . . Max in Single Turn . | . . . Machines Repaired . | . . . Machines Dismantled . | . . . Machines Sabotaged . | . . . Overloaded Fab Kills . | . . . Hacking | -11 -10 -10 --------- Run | Yrd Mat Min Machines Accessed 7 | . 7 . Terminals 6 | . 6 . Fabricators . | . . . Repair Stations 1 | . 1 . Recycling Units . | . . . Scanalyzers . | . . . Garrison Access . | . . . Total Hacks 21 | . 21 . Successful 11 | . 11 . Failed 10 | . 10 . Catastrophic 2 | . 2 . Database Lockouts . | . . . Manual 5 | . 5 . Terminals 17 | . 17 . Fabricators . | . . . Repair Stations 4 | . 4 . Recycling Units . | . . . Scanalyzers . | . . . Garrison Access . | . . . Terminal Hacks 8 | . 8 . Part Schematic 1 | . 1 . Robot Analysis 1 | . 1 . Prototype ID Bank 2 | . 2 . Emergency Access Points 1 | . 1 . Locate Traps 1 | . 1 . Reprogram Traps 1 | . 1 . Zone Layout 1 | . 1 . Fabricator Hacks . | . . . Repair Station Hacks 3 | . 3 . Scan Component 2 | . 2 . Repair 1 | . 1 . Recycling Unit Hacks . | . . . Scanalyzer . | . . . Garrison Access Hacks . | . . . Unauthorized Hacks . | . . . Terminals . | . . . Fabricators . | . . . Repair Stations . | . . . Recycling Units . | . . . Scanalyzers . | . . . Garrison Access . | . . . Data Cores Recovered . | . . . Used . | . . . Hacking Detections 5 | . 5 . Full Trace Events 1 | . 1 . Feedback Events . | . . . Feedback Blocked . | . . . Robot Schematics Acquired . | . . . Robots Built . | . . . Authchips . | . . . Time . | . . . Total Robot Build Rating . | . . . Part Schematics Acquired 1 | . 1 . Parts Built . | . . . Authchips . | . . . Time . | . . . Total Part Build Rating . | . . . Parts Repaired 1 | . 1 . Time 26 | . 26 . Parts Recycled . | . . . Recycled Matter . | . . . Retrieved Matter . | . . . Retrieved Components . | . . . Parts Scanalyzed . | . . . Part Schematics Acquired . | . . . Parts Damaged . | . . . Bothacking | -11 -10 -10 ------------ Run | Yrd Mat Min Used RIF Installer . | . . . Robots Hacked . | . . . Non-combat . | . . . Combat . | . . . Robot Hacks Applied . | . . . Relay Couplers Released . | . . . Fabnet Peak Effective % . | . . . Robots Rewired . | . . . Allies Hacked . | . . . Hacks Repelled . | . . . Allies | -11 -10 -10 -------- Run | Yrd Mat Min Total Allies . | . . . Largest Group . | . . . Highest-Rated Group . | . . . Highest-Rated Ally . | . . . Total Orders . | . . . Ally Attacks . | . . . Total Damage . | . . . Kills . | . . . Allies Corrupted . | . . . Allies Melted . | . . . Intel | -11 -10 -10 ------- Run | Yrd Mat Min Robot Analysis Total 1 | . 1 . Derelict Logs Recovered 2 | . . 2 Drone Launches . | . . . Drone Recoveries . | . . . Exploration | -11 -10 -10 ------------- Run | Yrd Mat Min Turns Passed 2215 | 49 1234 932 Spaces Moved 909 | 27 522 360 Core 3 | 3 . . Treads 906 | 24 522 360 Legs . | . . . Wheels . | . . . Hover . | . . . Flight . | . . . Fastest Speed 50 | 50 160 240 Average Speed 210 | 147 193 240 Slowest Speed 240 | 160 240 240 Overloaded Moves . | . . . Propulsion Burnouts . | . . . Robots Hopped . | . . . Cave-ins Triggered . | . . . Exploration Rate (%) 61 | 3 88 94 Regions Visited 2 Branch Regions 1 Pre-discovered Areas . | . . . Known Exits Taken 1 | . 1 . Unknown Exits Taken 1 | 1 . . Scrap Searched 1 | . . 1 Spaces Dug . | . . . Terrain Destroyed . | . . . Melee . | . . . Projectile . | . . . AOE . | . . . Terrain Rammed . | . . . Walls Destroyed . | . . . Machines Disabled . | . . . Actions | -11 -10 -10 --------- Run | Yrd Mat Min Total 1044 | 33 623 388 Wait 1 | . . 1 Move 908 | 27 521 360 Hop . | . . . Pick Up 10 | . 10 . Fast Attach 9 | 6 2 1 Attach 4 | . 3 1 Detach 1 | . 1 . Swap 7 | . 5 2 Drop 1 | . 1 . Fire 89 | . 66 23 Melee . | . . . Ram . | . . . Kick . | . . . Crush 14 | . 14 . Escape Stasis . | . . . Rewire . | . . . Trap . | . . . Miscellaneous . | . . . Route ------- -11/Scrapyard -10/Materials (discovered 3 exits: *Mat x2 / *Min) -10/Mines (discovered 2 exits: *Mat x2) History --------- Turn | Location | Event 4 | -11/Scrapyard | Discovered new exit (range 16) 50 | -11/Scrapyard | Entered Materials 333 | -10/Materials | Build established: Mutant 688 | -10/Materials | Repaired Lgt. Treads 756 | -10/Materials | Core integrity fell below 50% 845 | -10/Materials | Discovered new exit (range 15) 909 | -10/Materials | Identified exit to Materials 1120 | -10/Materials | Discovered exit to Materials (range 16) 1252 | -10/Materials | Discovered new exit (range 9) 1269 | -10/Materials | Identified exit to Mines 1284 | -10/Materials | Entered Mines 1349 | -10/Mines | Learned Materials stockpile data 1541 | -10/Mines | Discovered exit to Materials (range 8) 2068 | -10/Mines | Discovered exit to Materials (range 3) 2201 | -10/Mines | Core integrity fell below 20% 2216 | -10/Mines | Destroyed self with Light Ion Engine chain reaction Last Messages --------------- 01957_ EU6:K5H,I ,6:CPB4<7ET NRILDAGMW 01959_ K-01 Serf collects debris. 01999_ U-05 Engineer lays Concrete. 02010_ System corrupted: IFF burst signal emitted. 02015_ K-01 Serf cleans the Laser Drill. 02045_ Searching scrap... 02045_ Found Lgt. Armor Plating. 02045_ Found EM Pulse Gun. 02045_ Found 25 Matter. 02046_ Acquired 10 matter. 02053_ Acquired 15 matter. 02068_ EXIT=FOUND: MATERIALS 02196_ Lgt. Treads destroyed. 02204_ S-10 Pest destroyed. 02206_ R-06 Scavenger collects Flight Unit. 02207_ R-06 Scavenger destroyed. 02209_ EM Pulse Gun destroyed. 02210_ Destroyed Flight Unit. 02216_ Chain reaction triggered in Lgt. Ion Engine. 02216_ S-10 Pest destroyed. Map ----- +----------------------------------------------------+ | % """ ##???????## #?????? | | """ ##?????## ### ##?????? | | """ #????## ##?## ####??????? | | ##???# #???######?????????? | | ### #???# #??????????????????? | | ##?## #???## ##??????????????????? | | #??## #????####???????????????????? | | #??# ##???????????????????????????? | | #?# ##???????????????????????????? | | # ### #???????????????????????????? | | ### #?## #???????????????????????????? | | ??## ##??# #???????????????????????????? | | ????##??## #???????????????????????????? | | ????????# #???????????????????????????? | | ???????## #####?####??????????????????? | | ???????# ### ##?????????????????? | | ???????# ## ## ##??????######????? | | ???????# ##!## < ####??## ##???? | | ???????## ## ### #### ##??? | | #???????## ## ## #??? | | #???????# ### #??? | | ???????## ### ## #?## """" ## ##??? | | ????????####?# ## #??# """" #####???? | | #???????????## #??## """" #???????? | | ????????????# #?## ##??????? | | ?????????????# ##@ ##?????? | | #????????????# %! ####??? | | ##??????????## %% ##?? | | ##??????????####### s #?? | | ??????####???????## ## #?? | | ??????? #????????########### ##?? | | #???????# ##################### ##??? | | # #??###### ## ## ##??? | | # #??# ## #??? | | # ##?# ####### """ """ """ ## #??? | | # #?# #?????# """ """ """ ######??? | | #?# #?????# """ """ """ #???????? | | ### #?????# #???????? | | #?????# """ """ """ #???????? | | #?????# """ """ """ #???????? | | ####?????# """ """ """ #???????? | | #????????# #???????? | | ###????????# #???????? | | ##??????????####################???????? | | ###??????????????????????????????????????? | | ?????????????????????????????????????????? | | ?????????????????????????????????????????? | | ?????????????????????????????????????????? | | ?????????????????????????????????????????? | | ?????????????????????????????????????????? | +----------------------------------------------------+ Best States ------------- Heat Dissipation 25 Energy Generation 10 Energy Capacity 250 Matter Stores 300 Matter Capacity 300 Sight Range 16 Terrain Scan Density 10 Evasion (%) 40 Recoil Reduction 2 Item Schematics ----------------- Flight Unit | -10/Materials | Hacked Robot Schematics ------------------ None Fabricated ------------ Nothing Alien Tech Used ----------------- None Achievements -------------- None Challenges ------------ None Game ------ Seed NavigationIonRefractor Manual? 0 Play Time 00:14:50 Cumulative 9.8 hours Start 2024.04.02 @ 14:41:16 End 2024.04.02 @ 14:54:09 Sessions 1 Manual Loads 0 Difficulty Rogue Special Mode None Game No. 20 Rogue 20 Adventurer 0 Explorer 0 Win Type - Total 0 Types 0/0/0/0/0/0/0/0/0 Lore% 17 Gallery% 21 Achievement% 20 Wizard Run 0 Options --------- Layout 0 ASCII 0 Keyboard 0 Movement Mouse Keybinds 0 Fullscreen 1 Font 18/SmallcapsGlow Map View 76x50 Zoom Use 6% Tactical HUD 1 Map Filters NONE Filters NONE Steam 1 RUN: 38820a33-9d9c-42d8-8a02-c7b08927a256